[Event "*** SCC Grand Prix: Titled Tuesday Blitz"]
[Site "Chess.com"]
[Date "2020.08.25"]
[Round "9"]
[White "Sn00pPawn"]
[Black "MYMChessAcademy"]
[Result "0-1"]
[WhiteElo "1999"]
[BlackElo "2107"]
[TimeControl "180+1"]
[EndTime "11:46:33 PDT"]
[Termination "MYMChessAcademy won on time"]

1. d4 {[%clk 0:01:57.6]} 1... Nf6 {[%clk 0:02:58.8]} 2. c4 {[%clk 0:01:14.1]}
2... g6 {[%clk 0:02:57.3]} 3. Nc3 {[%clk 0:01:13.8]} 3... Bg7 {[%clk 0:02:57]}
4. e4 {[%clk 0:01:13.4]} 4... d6 {[%clk 0:02:57.4]} 5. Nf3 {[%clk 0:01:12.5]}
5... O-O {[%clk 0:02:57.2]} 6. Be2 {[%clk 0:01:10.8]} 6... e5 {[%clk 0:02:55.1]}
7. O-O {[%clk 0:01:07.3]} 7... Nc6 {[%clk 0:02:55.3]} 8. d5 {[%clk 0:01:06.3]}
8... Ne7 {[%clk 0:02:55.6]} 9. Ne1 {[%clk 0:01:02.3]} 9... Nd7 {[%clk
0:02:55.6]} 10. Be3 {[%clk 0:00:57.4]} 10... f5 {[%clk 0:02:51.7]} 11. f3 {[%clk
0:00:57.3]} 11... f4 {[%clk 0:02:48.8]} 12. Bf2 {[%clk 0:00:56.6]} 12... g5
{[%clk 0:02:48.9]} 13. c5 {[%clk 0:00:50]} 13... dxc5 {[%clk 0:02:46.5]} 14. Rc1
{[%clk 0:00:47.7]} 14... b6 {[%clk 0:02:44.2]} 15. Nb5 {[%clk 0:00:43.8]} 15...
h5 {[%clk 0:02:41.3]} 16. b4 {[%clk 0:00:35.9]} 16... Nf6 {[%clk 0:02:32.7]} 17.
bxc5 {[%clk 0:00:33.3]} 17... bxc5 {[%clk 0:02:33.6]} 18. Rxc5 {[%clk 0:00:32]}
18... g4 {[%clk 0:02:21.6]} 19. Nxc7 {[%clk 0:00:25]} 19... Rb8 {[%clk
0:02:20.3]} 20. d6 {[%clk 0:00:25.2]} 20... Ng6 {[%clk 0:02:18.3]} 21. Bc4+
{[%clk 0:00:24.7]} 21... Kh8 {[%clk 0:02:15.1]} 22. Nd3 {[%clk 0:00:19.8]} 22...
gxf3 {[%clk 0:02:02.7]} 23. gxf3 {[%clk 0:00:19.4]} 23... Nd7 {[%clk 0:02:00.1]}
24. Rc6 {[%clk 0:00:17.7]} 24... Qg5+ {[%clk 0:01:18.3]} 25. Kh1 {[%clk
0:00:17.2]} 25... Qf6 {[%clk 0:01:12.1]} 26. Bxa7 {[%clk 0:00:09.8]} 26... Ra8
{[%clk 0:01:07.4]} 27. Bf2 {[%clk 0:00:08]} 27... Bb7 {[%clk 0:01:07.3]} 28. Nd5
{[%clk 0:00:07.1]} 28... Qd8 {[%clk 0:01:04.3]} 29. Rc7 {[%clk 0:00:07.3]} 29...
Bxd5 {[%clk 0:01:04.1]} 30. Bxd5 {[%clk 0:00:07.2]} 30... Rc8 {[%clk 0:01:03.5]}
31. Qc2 {[%clk 0:00:06.2]} 31... Nf6 {[%clk 0:00:59.8]} 32. Rg1 {[%clk
0:00:04.8]} 32... Nh4 {[%clk 0:00:56.8]} 33. Bxh4 {[%clk 0:00:03.7]} 33... Rxc7
{[%clk 0:00:56.3]} 0-1

[Event "*** SCC Grand Prix: Titled Tuesday Blitz"]
[Site "Chess.com"]
[Date "2020.08.25"]
[Round "9"]
[White "biostatistician"]
[Black "Marty435"]
[Result "1-0"]
[WhiteElo "2499"]
[BlackElo "2601"]
[TimeControl "180+1"]
[EndTime "11:46:35 PDT"]
[Termination "biostatistician won on time"]

1. d4 {[%clk 0:03:00.8]} 1... d5 {[%clk 0:01:39.6]} 2. Nf3 {[%clk 0:03:01.7]}
2... Nf6 {[%clk 0:01:38.9]} 3. c4 {[%clk 0:03:02.6]} 3... c6 {[%clk 0:01:38.1]}
4. cxd5 {[%clk 0:03:03.1]} 4... cxd5 {[%clk 0:01:39]} 5. Nc3 {[%clk 0:03:04]}
5... Nc6 {[%clk 0:01:39.3]} 6. Bf4 {[%clk 0:03:04.7]} 6... Bf5 {[%clk
0:01:38.5]} 7. e3 {[%clk 0:03:05.1]} 7... e6 {[%clk 0:01:38.9]} 8. Qb3 {[%clk
0:03:05.5]} 8... Bb4 {[%clk 0:01:09.5]} 9. Bb5 {[%clk 0:03:05.5]} 9... O-O
{[%clk 0:01:07.5]} 10. O-O {[%clk 0:03:06]} 10... Bd6 {[%clk 0:01:01.7]} 11.
Bxd6 {[%clk 0:03:03.9]} 11... Qxd6 {[%clk 0:01:02.6]} 12. Rfc1 {[%clk
0:03:04.1]} 12... Rfc8 {[%clk 0:01:01.6]} 13. Na4 {[%clk 0:03:01.9]} 13... b6
{[%clk 0:00:59.2]} 14. Ba6 {[%clk 0:02:56.5]} 14... Rc7 {[%clk 0:00:58.6]} 15.
Qd1 {[%clk 0:02:49.6]} 15... Nb4 {[%clk 0:00:55.6]} 16. Rxc7 {[%clk 0:02:41.7]}
16... Qxc7 {[%clk 0:00:56.5]} 17. Rc1 {[%clk 0:02:41.3]} 17... Bc2 {[%clk
0:00:56.5]} 18. Qd2 {[%clk 0:02:40]} 18... Nxa6 {[%clk 0:00:45.4]} 19. Rxc2
{[%clk 0:02:39.3]} 19... Qb7 {[%clk 0:00:45.3]} 20. Qc1 {[%clk 0:02:35.5]} 20...
Ne4 {[%clk 0:00:44.1]} 21. a3 {[%clk 0:02:23.3]} 21... Nd6 {[%clk 0:00:42.8]}
22. Ne5 {[%clk 0:02:18]} 22... Rc8 {[%clk 0:00:42.5]} 23. g3 {[%clk 0:02:12.4]}
23... Nb8 {[%clk 0:00:37.9]} 24. Kg2 {[%clk 0:02:04.6]} 24... f6 {[%clk
0:00:37.3]} 25. Nd3 {[%clk 0:02:04.5]} 25... Kf8 {[%clk 0:00:34.5]} 26. Nf4
{[%clk 0:02:03.1]} 26... Ke7 {[%clk 0:00:34.6]} 27. h4 {[%clk 0:02:03.4]} 27...
Rxc2 {[%clk 0:00:31.8]} 28. Qxc2 {[%clk 0:02:04.3]} 28... Qc6 {[%clk 0:00:31.5]}
29. Qxh7 {[%clk 0:02:01.5]} 29... Qxa4 {[%clk 0:00:27.8]} 30. Qxg7+ {[%clk
0:02:01.7]} 30... Ke8 {[%clk 0:00:09.7]} 31. Qh8+ {[%clk 0:01:49.7]} 31... Kd7
{[%clk 0:00:08.5]} 32. Qxb8 {[%clk 0:01:49.8]} 32... e5 {[%clk 0:00:03]} 33.
Nxd5 {[%clk 0:01:48]} 33... Qc6 {[%clk 0:00:03.1]} 34. Qxa7+ {[%clk 0:01:32.3]}
34... Ke6 {[%clk 0:00:03]} 35. e4 {[%clk 0:01:30.9]} 35... Nxe4 {[%clk
0:00:03.4]} 36. Qe7+ {[%clk 0:01:28.5]} 36... Kxd5 {[%clk 0:00:03.5]} 37. dxe5
{[%clk 0:01:24.4]} 37... fxe5 {[%clk 0:00:04.1]} 38. Qf7+ {[%clk 0:01:20.4]}
38... Kd4 {[%clk 0:00:04.2]} 39. Qf3 {[%clk 0:01:18.8]} 39... Nc5 {[%clk
0:00:02.5]} 40. Qxc6 {[%clk 0:01:18.2]} 1-0

[Event "*** SCC Grand Prix: Titled Tuesday Blitz"]
[Site "Chess.com"]
[Date "2020.08.25"]
[Round "9"]
[White "Anton_Demchenko"]
[Black "FairChess_on_YouTube"]
[Result "1/2-1/2"]
[WhiteElo "2854"]
[BlackElo "2983"]
[TimeControl "180+1"]
[EndTime "11:46:36 PDT"]
[Termination "Game drawn by agreement"]

1. d4 {[%clk 0:02:58.1]} 1... Nf6 {[%clk 0:02:59.3]} 2. Nf3 {[%clk 0:02:58.5]}
2... g6 {[%clk 0:02:55]} 3. Bf4 {[%clk 0:02:58.2]} 3... Bg7 {[%clk 0:02:54.9]}
4. c3 {[%clk 0:02:58.9]} 4... O-O {[%clk 0:02:54.8]} 5. Nbd2 {[%clk 0:02:59.5]}
5... d5 {[%clk 0:02:53.7]} 6. e3 {[%clk 0:02:59.7]} 6... c5 {[%clk 0:02:53.9]}
7. h3 {[%clk 0:02:59.9]} 7... Nc6 {[%clk 0:02:54]} 8. Be2 {[%clk 0:02:57.9]}
8... Nd7 {[%clk 0:02:54]} 9. O-O {[%clk 0:02:57.9]} 9... e5 {[%clk 0:02:54.1]}
10. dxe5 {[%clk 0:02:58.8]} 10... Ndxe5 {[%clk 0:02:54.3]} 11. Qb3 {[%clk
0:02:59.3]} 11... Qb6 {[%clk 0:02:37.7]} 12. Rfd1 {[%clk 0:02:47.6]} 12... Be6
{[%clk 0:02:33.2]} 13. Ng5 {[%clk 0:02:39.1]} 13... c4 {[%clk 0:02:26.8]} 14.
Qa3 {[%clk 0:02:01.3]} 14... a5 {[%clk 0:01:57.2]} 15. b3 {[%clk 0:01:37.7]}
15... Nd3 {[%clk 0:01:50.9]} 16. bxc4 {[%clk 0:01:23.3]} 16... Nxf4 {[%clk
0:01:50.2]} 17. exf4 {[%clk 0:01:23.7]} 17... d4 {[%clk 0:01:43.1]} 18. Rab1
{[%clk 0:01:09.5]} 18... Qc7 {[%clk 0:01:43.1]} 19. Nxe6 {[%clk 0:00:54]} 19...
fxe6 {[%clk 0:01:44]} 20. cxd4 {[%clk 0:00:54.6]} 20... Nxd4 {[%clk 0:01:38.7]}
21. Bf3 {[%clk 0:00:52.9]} 21... Qxf4 {[%clk 0:01:08.7]} 22. Qe3 {[%clk
0:00:52.8]} 22... Rad8 {[%clk 0:00:58.5]} 23. c5 {[%clk 0:00:37.1]} 23... Qf5
{[%clk 0:00:45.7]} 24. Be4 {[%clk 0:00:35.9]} 24... Qh5 {[%clk 0:00:40.7]} 25.
Nf3 {[%clk 0:00:33.5]} 25... Qxc5 {[%clk 0:00:37.5]} 26. Bxb7 {[%clk 0:00:28.7]}
26... Nxf3+ {[%clk 0:00:31.1]} 27. Bxf3 {[%clk 0:00:29.6]} 27... Qxe3 {[%clk
0:00:28.1]} 28. fxe3 {[%clk 0:00:30.5]} 28... Bf6 {[%clk 0:00:23.4]} 29. Kf2
{[%clk 0:00:30]} 29... Rxd1 {[%clk 0:00:22.8]} 30. Rxd1 {[%clk 0:00:29.4]} 30...
Rd8 {[%clk 0:00:23.3]} 31. Rxd8+ {[%clk 0:00:28.9]} 31... Bxd8 {[%clk
0:00:24.2]} 32. a4 {[%clk 0:00:29.3]} 1/2-1/2

[Event "*** SCC Grand Prix: Titled Tuesday Blitz"]
[Site "Chess.com"]
[Date "2020.08.25"]
[Round "9"]
[White "CraiggoryC"]
[Black "YIYUKI"]
[Result "1/2-1/2"]
[WhiteElo "2129"]
[BlackElo "2284"]
[TimeControl "180+1"]
[EndTime "11:46:42 PDT"]
[Termination "Game drawn - insufficient material"]

1. e4 {[%clk 0:03:00.9]} 1... d6 {[%clk 0:02:58.8]} 2. d4 {[%clk 0:02:57.1]}
2... Nf6 {[%clk 0:02:58.2]} 3. Nc3 {[%clk 0:02:56]} 3... g6 {[%clk 0:02:58]} 4.
g3 {[%clk 0:02:53.3]} 4... Bg7 {[%clk 0:02:57.3]} 5. Bg2 {[%clk 0:02:53.4]} 5...
O-O {[%clk 0:02:57.8]} 6. Nge2 {[%clk 0:02:49.2]} 6... c6 {[%clk 0:02:55.6]} 7.
a4 {[%clk 0:02:48]} 7... Nbd7 {[%clk 0:02:55.4]} 8. O-O {[%clk 0:02:44.1]} 8...
e5 {[%clk 0:02:55.3]} 9. h3 {[%clk 0:02:43.7]} 9... exd4 {[%clk 0:02:54.3]} 10.
Nxd4 {[%clk 0:02:43.6]} 10... Re8 {[%clk 0:02:54.8]} 11. Re1 {[%clk 0:02:26]}
11... a5 {[%clk 0:02:53]} 12. Kh2 {[%clk 0:02:24.5]} 12... Nc5 {[%clk
0:02:52.7]} 13. Bf4 {[%clk 0:02:18.6]} 13... Qe7 {[%clk 0:02:49.3]} 14. Qd2
{[%clk 0:02:15.4]} 14... Nh5 {[%clk 0:02:39.6]} 15. Bg5 {[%clk 0:01:56.6]} 15...
Bf6 {[%clk 0:02:39.2]} 16. Bxf6 {[%clk 0:01:49.7]} 16... Qxf6 {[%clk 0:02:39]}
17. Rad1 {[%clk 0:01:42.4]} 17... Bd7 {[%clk 0:02:26]} 18. Nb3 {[%clk 0:01:34]}
18... Nxb3 {[%clk 0:02:23.2]} 19. cxb3 {[%clk 0:01:34.9]} 19... Rad8 {[%clk
0:02:22.8]} 20. Qxd6 {[%clk 0:01:05.4]} 20... Qxf2 {[%clk 0:02:16.5]} 21. Rf1
{[%clk 0:01:05.2]} 21... Qe3 {[%clk 0:02:09.4]} 22. Qc7 {[%clk 0:00:58]} 22...
Qg5 {[%clk 0:01:34.7]} 23. Rxd7 {[%clk 0:00:49.5]} 23... Rxd7 {[%clk 0:01:31.2]}
24. Qxd7 {[%clk 0:00:49.4]} 24... Qxg3+ {[%clk 0:01:31.5]} 25. Kh1 {[%clk
0:00:44.4]} 25... Rf8 {[%clk 0:01:30.1]} 26. Qg4 {[%clk 0:00:31.3]} 26... Qe3
{[%clk 0:01:26.5]} 27. Rf3 {[%clk 0:00:28.3]} 27... Qc1+ {[%clk 0:01:22.6]} 28.
Kh2 {[%clk 0:00:28.1]} 28... Qxb2 {[%clk 0:01:23.5]} 29. e5 {[%clk 0:00:22.7]}
29... Qxb3 {[%clk 0:01:22.2]} 30. Ne4 {[%clk 0:00:20.6]} 30... Qe6 {[%clk
0:01:20.2]} 31. Qxe6 {[%clk 0:00:17.6]} 31... fxe6 {[%clk 0:01:21.1]} 32. Rxf8+
{[%clk 0:00:16.3]} 32... Kxf8 {[%clk 0:01:22]} 33. Nf6 {[%clk 0:00:16.4]} 33...
Nxf6 {[%clk 0:01:18.2]} 34. exf6 {[%clk 0:00:15.7]} 34... Kf7 {[%clk 0:01:18.8]}
35. Kg3 {[%clk 0:00:15.9]} 35... Kxf6 {[%clk 0:01:18.8]} 36. h4 {[%clk
0:00:15.7]} 36... b5 {[%clk 0:01:18.2]} 37. Bxc6 {[%clk 0:00:14.7]} 37... bxa4
{[%clk 0:01:17.3]} 38. Bxa4 {[%clk 0:00:14.7]} 38... e5 {[%clk 0:01:17.6]} 39.
Kg4 {[%clk 0:00:13.7]} 39... h5+ {[%clk 0:01:15.8]} 40. Kf3 {[%clk 0:00:12.5]}
40... g5 {[%clk 0:01:15.9]} 41. hxg5+ {[%clk 0:00:11.8]} 41... Kxg5 {[%clk
0:01:15.9]} 42. Kg3 {[%clk 0:00:11.9]} 42... Kf5 {[%clk 0:01:15]} 43. Bc2+
{[%clk 0:00:10.8]} 43... Ke6 {[%clk 0:01:14.6]} 44. Kh4 {[%clk 0:00:10.5]} 44...
Kd5 {[%clk 0:01:14.1]} 45. Kxh5 {[%clk 0:00:10.7]} 45... e4 {[%clk 0:01:14.7]}
46. Kg4 {[%clk 0:00:10.9]} 46... e3 {[%clk 0:01:13.5]} 47. Kf3 {[%clk
0:00:10.8]} 47... Kd4 {[%clk 0:01:14]} 48. Ke2 {[%clk 0:00:10.3]} 48... a4
{[%clk 0:01:13.4]} 49. Bxa4 {[%clk 0:00:10.2]} 49... Kc5 {[%clk 0:01:12.6]} 50.
Kxe3 {[%clk 0:00:09.8]} 1/2-1/2

[Event "*** SCC Grand Prix: Titled Tuesday Blitz"]
[Site "Chess.com"]
[Date "2020.08.25"]
[Round "9"]
[White "mamey78"]
[Black "Artem_Sadovsky"]
[Result "1-0"]
[WhiteElo "2436"]
[BlackElo "2540"]
[TimeControl "180+1"]
[EndTime "11:46:46 PDT"]
[Termination "mamey78 won by resignation"]

1. e4 {[%clk 0:03:00.5]} 1... c6 {[%clk 0:02:44]} 2. d4 {[%clk 0:02:52.8]} 2...
d5 {[%clk 0:02:44.9]} 3. exd5 {[%clk 0:02:53]} 3... cxd5 {[%clk 0:02:41.4]} 4.
c4 {[%clk 0:02:52.2]} 4... Nf6 {[%clk 0:02:41]} 5. Nc3 {[%clk 0:02:51.9]} 5...
e6 {[%clk 0:02:41.3]} 6. Nf3 {[%clk 0:02:49.6]} 6... Nc6 {[%clk 0:02:40.4]} 7.
cxd5 {[%clk 0:02:45.4]} 7... Nxd5 {[%clk 0:02:32.1]} 8. Bc4 {[%clk 0:02:45.1]}
8... Bb4 {[%clk 0:02:10.5]} 9. Qc2 {[%clk 0:02:39]} 9... Nb6 {[%clk 0:02:05.6]}
10. Bb5 {[%clk 0:02:34.8]} 10... O-O {[%clk 0:02:05.5]} 11. a3 {[%clk
0:02:27.1]} 11... Be7 {[%clk 0:01:53.2]} 12. Be3 {[%clk 0:02:26.3]} 12... Bd7
{[%clk 0:01:45.9]} 13. Bd3 {[%clk 0:02:18.7]} 13... h6 {[%clk 0:01:45.2]} 14.
O-O {[%clk 0:02:18.2]} 14... Rc8 {[%clk 0:01:36.3]} 15. Qe2 {[%clk 0:02:15.6]}
15... Na5 {[%clk 0:01:29.2]} 16. Ne5 {[%clk 0:02:06.6]} 16... Bf6 {[%clk
0:01:29.4]} 17. Qg4 {[%clk 0:02:02.3]} 17... Bg5 {[%clk 0:00:48.2]} 18. Rad1
{[%clk 0:01:52.7]} 18... f5 {[%clk 0:00:40]} 19. Qf3 {[%clk 0:01:31.2]} 19... f4
{[%clk 0:00:40.1]} 20. Bc1 {[%clk 0:01:26.7]} 20... Bc6 {[%clk 0:00:38.7]} 21.
Nxc6 {[%clk 0:01:22.5]} 21... Nxc6 {[%clk 0:00:39.6]} 22. Qe4 {[%clk 0:01:21.8]}
22... Qf6 {[%clk 0:00:33.3]} 23. d5 {[%clk 0:01:15.2]} 23... Ne5 {[%clk
0:00:28.7]} 24. Qh7+ {[%clk 0:01:13.2]} 24... Kf7 {[%clk 0:00:28.7]} 25. Ne4
{[%clk 0:01:13]} 25... Nxd5 {[%clk 0:00:24.3]} 26. Nd6+ {[%clk 0:01:05.5]} 26...
Ke7 {[%clk 0:00:22.9]} 27. Nxc8+ {[%clk 0:01:05]} 27... Rxc8 {[%clk 0:00:23]}
28. Rfe1 {[%clk 0:01:02.5]} 28... Rxc1 {[%clk 0:00:21]} 29. Rxc1 {[%clk
0:00:54.7]} 29... Nxd3 {[%clk 0:00:20.6]} 30. Qxd3 {[%clk 0:00:54.5]} 30... f3
{[%clk 0:00:12]} 31. Qxd5 {[%clk 0:00:54.6]} 31... Bxc1 {[%clk 0:00:10.7]} 32.
Qxb7+ {[%clk 0:00:54.3]} 32... Kf8 {[%clk 0:00:10.5]} 33. Rxc1 {[%clk
0:00:53.3]} 33... Kg8 {[%clk 0:00:10.1]} 1-0

[Event "*** SCC Grand Prix: Titled Tuesday Blitz"]
[Site "Chess.com"]
[Date "2020.08.25"]
[Round "9"]
[White "Bastiandash"]
[Black "Blagorod"]
[Result "1-0"]
[WhiteElo "2389"]
[BlackElo "2172"]
[TimeControl "180+1"]
[EndTime "11:46:49 PDT"]
[Termination "Bastiandash won by resignation"]

1. e4 {[%clk 0:03:00.9]} 1... e5 {[%clk 0:02:59.7]} 2. Nf3 {[%clk 0:02:58.6]}
2... Nf6 {[%clk 0:03:00.1]} 3. Nxe5 {[%clk 0:02:57.6]} 3... d6 {[%clk
0:02:59.8]} 4. Nf3 {[%clk 0:02:57.8]} 4... Nxe4 {[%clk 0:03:00.3]} 5. Nc3 {[%clk
0:02:58.5]} 5... Nxc3 {[%clk 0:02:59]} 6. dxc3 {[%clk 0:02:59.4]} 6... Be7
{[%clk 0:02:57.3]} 7. Be3 {[%clk 0:02:57.8]} 7... Nc6 {[%clk 0:02:49.8]} 8. Bd3
{[%clk 0:02:57.5]} 8... Be6 {[%clk 0:02:49.5]} 9. Qd2 {[%clk 0:02:56.8]} 9...
Qd7 {[%clk 0:02:49.6]} 10. O-O-O {[%clk 0:02:47.4]} 10... O-O-O {[%clk
0:02:49.8]} 11. Kb1 {[%clk 0:02:47.3]} 11... Kb8 {[%clk 0:02:49.8]} 12. Rhe1
{[%clk 0:02:45.2]} 12... f6 {[%clk 0:02:44.5]} 13. h3 {[%clk 0:02:44.7]} 13...
Bf7 {[%clk 0:02:30.1]} 14. c4 {[%clk 0:02:42.9]} 14... Ne5 {[%clk 0:02:27]} 15.
Nxe5 {[%clk 0:02:34.9]} 15... dxe5 {[%clk 0:02:23]} 16. b3 {[%clk 0:02:35.1]}
16... Qc6 {[%clk 0:02:18.3]} 17. f3 {[%clk 0:02:29]} 17... Bc5 {[%clk
0:02:00.3]} 18. Qe2 {[%clk 0:02:15.3]} 18... Bb4 {[%clk 0:01:48.8]} 19. Bd2
{[%clk 0:02:14.9]} 19... Bxd2 {[%clk 0:01:46.7]} 20. Rxd2 {[%clk 0:02:15.8]}
20... a5 {[%clk 0:01:39.6]} 21. Be4 {[%clk 0:02:13.1]} 21... Qb6 {[%clk
0:01:29.1]} 22. Red1 {[%clk 0:01:54.5]} 22... c6 {[%clk 0:01:12.3]} 23. Rd7
{[%clk 0:01:47.7]} 23... Be6 {[%clk 0:00:55.7]} 24. c5 {[%clk 0:01:39.9]} 24...
Qb4 {[%clk 0:00:22.6]} 25. Rxd8+ {[%clk 0:01:19.5]} 25... Rxd8 {[%clk 0:00:22]}
26. Rxd8+ {[%clk 0:01:20.4]} 26... Kc7 {[%clk 0:00:22.4]} 27. Qd2 {[%clk
0:01:06.4]} 27... Qxc5 {[%clk 0:00:22.2]} 28. Rh8 {[%clk 0:00:59.4]} 28... Kb6
{[%clk 0:00:19.2]} 29. Qd8+ {[%clk 0:00:47]} 29... Ka6 {[%clk 0:00:19.3]} 30.
Qa8+ {[%clk 0:00:43.3]} 30... Kb6 {[%clk 0:00:19.4]} 31. Qd8+ {[%clk 0:00:42.3]}
31... Ka6 {[%clk 0:00:19.5]} 32. Bd3+ {[%clk 0:00:42]} 32... b5 {[%clk
0:00:15.8]} 33. Qa8+ {[%clk 0:00:38.9]} 33... Kb6 {[%clk 0:00:16.3]} 34. Rb8+
{[%clk 0:00:37]} 34... Kc7 {[%clk 0:00:16.8]} 35. Qb7+ {[%clk 0:00:32.3]} 35...
Kd6 {[%clk 0:00:16.7]} 36. Rd8+ {[%clk 0:00:32.7]} 1-0

[Event "*** SCC Grand Prix: Titled Tuesday Blitz"]
[Site "Chess.com"]
[Date "2020.08.25"]
[Round "9"]
[White "rugbyclub"]
[Black "Cambek64"]
[Result "1-0"]
[WhiteElo "2174"]
[BlackElo "2319"]
[TimeControl "180+1"]
[EndTime "11:46:52 PDT"]
[Termination "rugbyclub won by resignation"]

1. e4 {[%clk 0:03:00.9]} 1... c5 {[%clk 0:02:53.7]} 2. Nf3 {[%clk 0:02:56.9]}
2... e6 {[%clk 0:02:38.2]} 3. d4 {[%clk 0:02:51.6]} 3... cxd4 {[%clk 0:02:35.4]}
4. Nxd4 {[%clk 0:02:49.5]} 4... Nf6 {[%clk 0:02:34.9]} 5. Nc3 {[%clk 0:02:49.1]}
5... Bb4 {[%clk 0:02:33.8]} 6. e5 {[%clk 0:02:49.2]} 6... Nd5 {[%clk 0:02:33.9]}
7. Bd2 {[%clk 0:02:49.3]} 7... Nxc3 {[%clk 0:02:32.8]} 8. bxc3 {[%clk
0:02:40.7]} 8... Be7 {[%clk 0:02:32.5]} 9. Qg4 {[%clk 0:02:40.2]} 9... O-O
{[%clk 0:02:30.4]} 10. Bh6 {[%clk 0:02:38.5]} 10... g6 {[%clk 0:02:29.3]} 11.
Bxf8 {[%clk 0:02:39]} 11... Bxf8 {[%clk 0:02:29.3]} 12. h4 {[%clk 0:02:39.2]}
12... Qa5 {[%clk 0:02:29.4]} 13. Ne2 {[%clk 0:02:23.9]} 13... Qxe5 {[%clk
0:02:18.2]} 14. h5 {[%clk 0:02:23.3]} 14... Nc6 {[%clk 0:02:12.6]} 15. hxg6
{[%clk 0:02:22.4]} 15... hxg6 {[%clk 0:02:11.6]} 16. O-O-O {[%clk 0:02:16]}
16... Ba3+ {[%clk 0:02:03]} 17. Kd2 {[%clk 0:02:12.3]} 17... d5 {[%clk 0:01:54]}
18. Nd4 {[%clk 0:02:08.5]} 18... Bd7 {[%clk 0:01:17.6]} 19. Bd3 {[%clk
0:01:56.9]} 19... Qg7 {[%clk 0:01:09.6]} 20. Qh4 {[%clk 0:01:50.4]} 20... Rc8
{[%clk 0:01:08.2]} 21. Rh2 {[%clk 0:01:47.9]} 21... Bb2 {[%clk 0:01:06.8]} 22.
Rdh1 {[%clk 0:01:43.6]} 22... Bxc3+ {[%clk 0:01:00.5]} 23. Kxc3 {[%clk
0:01:34.2]} 23... Nxd4+ {[%clk 0:01:00.3]} 24. Kd2 {[%clk 0:01:34.4]} 24... Kf8
{[%clk 0:00:25.5]} 25. a4 {[%clk 0:01:27.1]} 25... Bxa4 {[%clk 0:00:23.9]} 26.
Qh8+ {[%clk 0:01:26.7]} 26... Qxh8 {[%clk 0:00:18.4]} 27. Rxh8+ {[%clk
0:01:25.9]} 27... Ke7 {[%clk 0:00:19.3]} 28. Rxc8 {[%clk 0:01:25.2]} 28... Bc6
{[%clk 0:00:18.9]} 29. c3 {[%clk 0:01:13.8]} 29... Nb3+ {[%clk 0:00:17.9]} 30.
Ke3 {[%clk 0:01:13.6]} 30... Nc5 {[%clk 0:00:18]} 31. Rh7 {[%clk 0:01:09.8]}
31... Kf6 {[%clk 0:00:13.7]} 32. Rf8 {[%clk 0:01:01.5]} 32... e5 {[%clk
0:00:12.4]} 33. Rfxf7+ {[%clk 0:00:56]} 33... Ke6 {[%clk 0:00:09.2]} 34. Bxg6
{[%clk 0:00:52.8]} 34... Kd6 {[%clk 0:00:09.7]} 35. Rf6+ {[%clk 0:00:49.5]}
35... Ne6 {[%clk 0:00:07.5]} 36. Bf5 {[%clk 0:00:49.3]} 1-0

[Event "*** SCC Grand Prix: Titled Tuesday Blitz"]
[Site "Chess.com"]
[Date "2020.08.25"]
[Round "9"]
[White "Volodar_Murzin"]
[Black "MestreSoares"]
[Result "1-0"]
[WhiteElo "2617"]
[BlackElo "2153"]
[TimeControl "180+1"]
[EndTime "11:46:53 PDT"]
[Termination "Volodar_Murzin won by resignation"]

1. e4 {[%clk 0:02:52]} 1... Nf6 {[%clk 0:02:59.1]} 2. e5 {[%clk 0:02:50.4]} 2...
Nd5 {[%clk 0:02:59.1]} 3. Nf3 {[%clk 0:02:41.2]} 3... d6 {[%clk 0:02:58.4]} 4.
d4 {[%clk 0:02:42.1]} 4... Bg4 {[%clk 0:02:56.6]} 5. Bc4 {[%clk 0:02:38.9]} 5...
e6 {[%clk 0:02:55.6]} 6. O-O {[%clk 0:02:21.1]} 6... Nb6 {[%clk 0:02:53.1]} 7.
Be2 {[%clk 0:02:18.5]} 7... Be7 {[%clk 0:02:52.4]} 8. h3 {[%clk 0:02:09.7]} 8...
Bh5 {[%clk 0:02:47.6]} 9. Nbd2 {[%clk 0:02:07.2]} 9... O-O {[%clk 0:02:45.1]}
10. c3 {[%clk 0:01:56.6]} 10... d5 {[%clk 0:02:42.2]} 11. Nb3 {[%clk 0:01:49]}
11... N8d7 {[%clk 0:02:39.7]} 12. g4 {[%clk 0:01:44.7]} 12... Bg6 {[%clk
0:02:37.2]} 13. Be3 {[%clk 0:01:39.1]} 13... c6 {[%clk 0:02:01.6]} 14. Nfd2
{[%clk 0:01:28.6]} 14... f5 {[%clk 0:01:51.7]} 15. f4 {[%clk 0:01:23.7]} 15...
Nc8 {[%clk 0:01:45.2]} 16. Nc1 {[%clk 0:01:19.9]} 16... b5 {[%clk 0:01:36]} 17.
Nd3 {[%clk 0:01:14.1]} 17... Ncb6 {[%clk 0:01:34.5]} 18. b3 {[%clk 0:01:09.1]}
18... Rc8 {[%clk 0:01:27.5]} 19. Nc5 {[%clk 0:00:50.2]} 19... Nxc5 {[%clk
0:01:24.1]} 20. dxc5 {[%clk 0:00:51.1]} 20... Nd7 {[%clk 0:01:24.1]} 21. b4
{[%clk 0:00:49.2]} 21... a5 {[%clk 0:01:24.5]} 22. Nb3 {[%clk 0:00:32.2]} 22...
axb4 {[%clk 0:01:12.4]} 23. cxb4 {[%clk 0:00:30]} 23... fxg4 {[%clk 0:00:59.2]}
24. Bxg4 {[%clk 0:00:23.2]} 24... Bf5 {[%clk 0:00:56]} 25. Nd4 {[%clk
0:00:17.8]} 25... g6 {[%clk 0:00:33.8]} 26. Nxe6 {[%clk 0:00:15.4]} 26... Bxe6
{[%clk 0:00:32.3]} 27. Bxe6+ {[%clk 0:00:16.3]} 27... Kh8 {[%clk 0:00:27.9]} 28.
Bd4 {[%clk 0:00:17.2]} 28... Kg7 {[%clk 0:00:22.4]} 29. Bxd7 {[%clk 0:00:16.1]}
1-0